[Event "16th EWICC 2015"]
[Site "Kutaisi"]
[Date "2015.06.02"]
[Round "7"]
[White "Mammadova, Gulnar"]
[Black "Gvetadze, Sofio"]
[Result "0-1"]
[ECO "B03"]
[WhiteElo "2293"]
[BlackElo "2319"]
[Annotator "Robot 11"]
[PlyCount "155"]
[EventDate "2015.??.??"]
[EventCountry "GEO"]
[TimeControl "900+10"]

1. e4 {[%emt 0:00:02]} Nf6 {[%emt 0:00:01]} 2. e5 {[%emt 0:00:06]} Nd5 {[%emt
0:00:02]} 3. d4 {[%emt 0:00:02]} d6 {[%emt 0:00:01]} 4. c4 {[%emt 0:00:16]} Nb6
{[%emt 0:00:02]} 5. exd6 {[%emt 0:00:02]} exd6 {[%emt 0:00:01]} 6. Nc3 {[%emt
0:00:04]} Be7 {[%emt 0:00:04]} 7. Nf3 {[%emt 0:00:12]} O-O {[%emt 0:00:04]} 8.
Be2 {[%emt 0:00:21]} Bg4 {[%emt 0:00:32]} 9. O-O {[%emt 0:00:20]} Nc6 {[%emt 0:
00:10]} 10. b3 {[%emt 0:00:25]} Bf6 {[%emt 0:00:23]} 11. Be3 {[%emt 0:00:04]}
Re8 {[%emt 0:00:15]} 12. h3 {[%emt 0:00:41]} Bh5 {[%emt 0:00:15]} 13. Qd2 {
[%emt 0:01:01]} d5 {[%emt 0:01:26]} 14. c5 {[%emt 0:00:01]} Nc8 {[%emt 0:00:01]
} 15. g4 {[%emt 0:03:40]} Bg6 {[%emt 0:00:02]} 16. g5 {[%emt 0:00:01]} Be7 {
[%emt 0:00:06]} 17. Nh4 {[%emt 0:00:17]} Bf8 {[%emt 0:01:39]} 18. f4 {[%emt 0:
01:41]} Be4 {[%emt 0:01:36]} 19. Nxe4 {[%emt 0:00:48]} Rxe4 {[%emt 0:00:02]}
20. Bd3 {[%emt 0:00:04]} Re8 {[%emt 0:01:07]} 21. f5 {[%emt 0:00:37]} Nb4 {
[%emt 0:02:20]} 22. Bb1 {[%emt 0:01:31]} b6 {[%emt 0:00:31]} 23. a3 {[%emt 0:
00:20]} Nc6 {[%emt 0:00:02]} 24. b4 {[%emt 0:00:06]} bxc5 {[%emt 0:00:05]} 25.
bxc5 {[%emt 0:00:03]} Na5 {[%emt 0:00:06]} 26. Ba2 {[%emt 0:01:01]} Nc4 {[%emt
0:00:12]} 27. Bxc4 {[%emt 0:00:01]} dxc4 {[%emt 0:00:01]} 28. d5 {[%emt 0:00:
15]} Rxe3 {[%emt 0:00:34]} 29. Qxe3 {[%emt 0:00:14]} Qxd5 {[%emt 0:00:01]} 30.
Kh2 {[%emt 0:01:08]} Qxc5 {[%emt 0:00:15]} 31. Qxc5 {[%emt 0:00:12]} Bxc5 {
[%emt 0:00:02]} 32. f6 {[%emt 0:00:25]} g6 {[%emt 0:00:24]} 33. Nf3 {[%emt 0:
00:40]} Nb6 {[%emt 0:01:16]} 34. Rfe1 {[%emt 0:00:57]} c3 {[%emt 0:02:34]} 35.
Re4 {[%emt 0:00:44]} Rd8 {[%emt 0:00:58]} 36. Rc1 {[%emt 0:00:34]} Nd5 {[%emt
0:00:12]} 37. a4 {[%emt 0:01:06]} a5 {[%emt 0:00:33]} 38. Kh1 {[%emt 0:00:23]}
h6 {[%emt 0:01:44]} 39. h4 {[%emt 0:00:22]} Rb8 {[%emt 0:00:01]} 40. Rc4 {
[%emt 0:00:15]} Bd6 {[%emt 0:00:28]} 41. Rd4 {[%emt 0:00:17]} Ba3 {[%emt 0:00:
27]} 42. Rc2 {[%emt 0:00:15]} Rb1+ {[%emt 0:00:32]} 43. Ng1 {[%emt 0:00:08]}
Rb2 {[%emt 0:00:14]} 44. Rc1 {[%emt 0:00:12]} Bd6 {[%emt 0:00:42]} 45. Ne2 {
[%emt 0:00:16]} Rxe2 {[%emt 0:00:11]} 46. Rxd5 {[%emt 0:00:01]} Bb4 {[%emt 0:
00:04]} 47. Rd8+ {[%emt 0:00:09]} Kh7 {[%emt 0:00:02]} 48. Rd7 {[%emt 0:00:02]}
Kg8 {[%emt 0:00:04]} 49. Rxc7 {[%emt 0:00:08]} hxg5 {[%emt 0:00:02]} 50. hxg5 {
[%emt 0:00:02]} Re5 {[%emt 0:00:04]} 51. Rc8+ {[%emt 0:00:06]} Kh7 {[%emt 0:00:
04]} 52. Rc7 {[%emt 0:00:03]} Kg8 {[%emt 0:00:05]} 53. Rc8+ {[%emt 0:00:02]}
Kh7 {[%emt 0:00:01]} 54. Rc7 {[%emt 0:00:22]} Rxg5 {[%emt 0:00:29]} 55. Rxf7+ {
[%emt 0:00:06]} Kh6 {[%emt 0:00:00]} 56. Rc2 {[%emt 0:00:33]} Rd5 {[%emt 0:00:
31]} 57. Rc7 {[%emt 0:00:23]} Rf5 {[%emt 0:00:17]} 58. Rh2+ {[%emt 0:00:10]}
Kg5 {[%emt 0:00:02]} 59. Rg2+ {[%emt 0:00:01]} Kxf6 {[%emt 0:00:03]} 60. Rc6+ {
[%emt 0:00:01]} Ke5 {[%emt 0:00:06]} 61. Rgxg6 {[%emt 0:00:07]} Kd4 {[%emt 0:
00:02]} 62. Rg4+ {[%emt 0:00:05]} Kd3 {[%emt 0:00:03]} 63. Rg3+ {[%emt 0:00:05]
} Kc2 {[%emt 0:00:02]} 64. Rg8 {[%emt 0:00:22]} Kb3 {[%emt 0:00:03]} 65. Rgc8 {
[%emt 0:00:03]} Rf3 {[%emt 0:00:09]} 66. Kg2 {[%emt 0:00:01]} Rd3 {[%emt 0:00:
01]} 67. Kf2 {[%emt 0:00:10]} Kxa4 {[%emt 0:00:03]} 68. Ke2 {[%emt 0:00:04]}
Rh3 {[%emt 0:00:01]} 69. Rd8 {[%emt 0:00:18]} Kb3 {[%emt 0:00:04]} 70. Rd4 {
[%emt 0:00:19]} Rh2+ {[%emt 0:00:12]} 71. Kd3 {[%emt 0:00:11]} Rd2+ {[%emt 0:
01:05]} 72. Ke3 {[%emt 0:00:02]} Rxd4 {[%emt 0:00:14]} 73. Kxd4 {[%emt 0:00:01]
} a4 {[%emt 0:00:04]} 74. Kd3 {[%emt 0:00:28]} a3 {[%emt 0:00:03]} 75. Rh6 {
[%emt 0:00:11]} a2 {[%emt 0:00:10]} 76. Rh1 {[%emt 0:00:05]} Ba3 {[%emt 0:00:
08]} 77. Rh7 {[%emt 0:00:37]} a1=Q {[%emt 0:00:09]} 78. Kd4 0-1

[Event "16th EWICC 2015"]
[Site "Kutaisi"]
[Date "2015.06.02"]
[Round "7"]
[White "Paehtz, Elisabeth"]
[Black "Dordzhieva, Dinara"]
[Result "1-0"]
[ECO "B24"]
[WhiteElo "2473"]
[BlackElo "2242"]
[Annotator "Robot 11"]
[PlyCount "33"]
[EventDate "2015.??.??"]
[EventCountry "GEO"]
[TimeControl "900+10"]

1. e4 {[%emt 0:00:01]} c5 {[%emt 0:00:03]} 2. Nc3 {[%emt 0:00:01]} Nc6 {[%emt
0:00:03]} 3. Bb5 {[%emt 0:00:02]} Nd4 {[%emt 0:00:06]} 4. Bc4 {[%emt 0:00:01]}
g6 {[%emt 0:00:06]} 5. Nf3 {[%emt 0:00:01]} Bg7 {[%emt 0:00:17]} 6. O-O {[%emt
0:00:02]} e6 {[%emt 0:01:30]} 7. Nxd4 {[%emt 0:00:02]} cxd4 {[%emt 0:00:01]} 8.
Nb5 {[%emt 0:00:01]} Qb6 {[%emt 0:00:31]} 9. c3 {[%emt 0:00:24]} a6 {[%emt 0:
02:49]} 10. Nxd4 {[%emt 0:00:03]} Bxd4 {[%emt 0:00:01]} 11. cxd4 {[%emt 0:00:
01]} Qxd4 {[%emt 0:00:01]} 12. d3 {[%emt 0:00:22]} Ne7 {[%emt 0:00:02]} 13. Bd2
{[%emt 0:01:10]} Qxb2 {[%emt 0:01:06]} 14. Qe1 {[%emt 0:00:17]} O-O {[%emt 0:
02:43]} 15. Bc3 {[%emt 0:00:02]} Qb6 {[%emt 0:00:03]} 16. Bf6 {[%emt 0:00:23]}
Nc6 {[%emt 0:00:51]} 17. Qd2 {[%emt 0:00:29]} 1-0

[Event "16th EWICC 2015"]
[Site "Kutaisi"]
[Date "2015.06.02"]
[Round "7"]
[White "Petrenko, Svetlana"]
[Black "Melia, Salome"]
[Result "0-1"]
[ECO "B54"]
[WhiteElo "2207"]
[BlackElo "2452"]
[Annotator "Robot 11"]
[PlyCount "120"]
[EventDate "2015.??.??"]
[EventCountry "GEO"]
[TimeControl "900+10"]

1. e4 {[%emt 0:00:01]} c5 {[%emt 0:00:01]} 2. Nf3 {[%emt 0:00:01]} d6 {[%emt 0:
00:03]} 3. d4 {[%emt 0:00:02]} cxd4 {[%emt 0:00:02]} 4. Nxd4 {[%emt 0:00:01]}
g6 {[%emt 0:00:03]} 5. g3 {[%emt 0:00:10]} Bg7 {[%emt 0:00:01]} 6. Bg2 {[%emt
0:00:04]} Nc6 {[%emt 0:00:15]} 7. c3 {[%emt 0:00:08]} Bd7 {[%emt 0:00:14]} 8.
O-O {[%emt 0:00:15]} Nf6 {[%emt 0:00:01]} 9. Na3 {[%emt 0:00:45]} O-O {[%emt 0:
00:03]} 10. Nac2 {[%emt 0:00:06]} a6 {[%emt 0:01:08]} 11. Kh1 {[%emt 0:00:27]}
Rc8 {[%emt 0:00:09]} 12. a4 {[%emt 0:00:33]} h6 {[%emt 0:02:07]} 13. f4 {[%emt
0:00:49]} e5 {[%emt 0:00:09]} 14. Nxc6 {[%emt 0:01:15]} Bxc6 {[%emt 0:00:07]}
15. Qd3 {[%emt 0:00:52]} exf4 {[%emt 0:01:46]} 16. Bxf4 {[%emt 0:00:18]} Re8 {
[%emt 0:00:02]} 17. Rfe1 {[%emt 0:01:42]} Ng4 {[%emt 0:00:22]} 18. Re2 {[%emt
0:01:00]} Ne5 {[%emt 0:01:53]} 19. Qd1 {[%emt 0:01:01]} Nc4 {[%emt 0:01:16]}
20. Nb4 {[%emt 0:00:34]} Bd7 {[%emt 0:01:16]} 21. h3 {[%emt 0:00:45]} a5 {
[%emt 0:00:02]} 22. Nd5 {[%emt 0:00:10]} b5 {[%emt 0:00:02]} 23. axb5 {[%emt 0:
01:44]} Bxb5 {[%emt 0:00:01]} 24. Rf2 {[%emt 0:00:16]} Bc6 {[%emt 0:00:19]} 25.
b3 {[%emt 0:02:12]} Ne5 {[%emt 0:00:21]} 26. Rc1 {[%emt 0:01:05]} Rb8 {[%emt 0:
01:22]} 27. Be3 {[%emt 0:00:11]} Rb7 {[%emt 0:01:25]} 28. Rb1 {[%emt 0:00:18]}
a4 {[%emt 0:01:15]} 29. Nb4 {[%emt 0:00:50]} Qd7 {[%emt 0:01:11]} 30. bxa4 {
[%emt 0:00:21]} Bxa4 {[%emt 0:00:14]} 31. Qd5 {[%emt 0:00:11]} Bc6 {[%emt 0:00:
13]} 32. Qd1 {[%emt 0:00:20]} Nc4 {[%emt 0:01:16]} 33. Bd4 {[%emt 0:00:07]}
Bxe4 {[%emt 0:00:35]} 34. Kh2 {[%emt 0:00:51]} Bxg2 {[%emt 0:00:19]} 35. Rxg2 {
[%emt 0:00:02]} Ne3 {[%emt 0:00:58]} 36. Bxe3 {[%emt 0:00:04]} Rxe3 {[%emt 0:
00:03]} 37. Nd5 {[%emt 0:00:07]} Re5 {[%emt 0:00:15]} 38. Rxb7 {[%emt 0:00:16]}
Qxb7 {[%emt 0:00:01]} 39. c4 {[%emt 0:00:03]} Kh7 {[%emt 0:00:16]} 40. Qd3 {
[%emt 0:00:25]} f5 {[%emt 0:00:08]} 41. g4 {[%emt 0:00:11]} Re4 {[%emt 0:00:03]
} 42. Re2 {[%emt 0:00:53]} Be5+ {[%emt 0:00:23]} 43. Kg2 {[%emt 0:00:05]} Rxe2+
{[%emt 0:00:10]} 44. Qxe2 {[%emt 0:00:01]} Qb3 {[%emt 0:00:02]} 45. Qf3 {[%emt
0:00:34]} Qxc4 {[%emt 0:00:04]} 46. gxf5 {[%emt 0:00:02]} Qc2+ {[%emt 0:00:02]}
47. Kf1 {[%emt 0:00:10]} Qxf5 {[%emt 0:00:27]} 48. Qxf5 {[%emt 0:00:02]} gxf5 {
[%emt 0:00:01]} 49. Ne7 {[%emt 0:00:01]} f4 {[%emt 0:00:06]} 50. Ke2 {[%emt 0:
00:02]} Kg7 {[%emt 0:00:10]} 51. Kf3 {[%emt 0:00:11]} Kf6 {[%emt 0:00:01]} 52.
Ng8+ {[%emt 0:00:25]} Kg5 {[%emt 0:00:24]} 53. h4+ {[%emt 0:00:27]} Kh5 {[%emt
0:00:20]} 54. Ke4 {[%emt 0:00:03]} Kxh4 {[%emt 0:00:19]} 55. Nxh6 {[%emt 0:00:
02]} Kg3 {[%emt 0:00:10]} 56. Nf5+ {[%emt 0:00:02]} Kg4 {[%emt 0:00:03]} 57.
Nh6+ {[%emt 0:00:04]} Kg3 {[%emt 0:00:14]} 58. Nf5+ {[%emt 0:00:02]} Kf2 {
[%emt 0:00:01]} 59. Nh4 {[%emt 0:00:47]} Ke2 {[%emt 0:00:01]} 60. Ng2 {[%emt 0:
00:21]} f3 {[%emt 0:00:11]} 0-1

[Event "16th EWICC 2015"]
[Site "Kutaisi"]
[Date "2015.06.02"]
[Round "7"]
[White "Sviridova, Vlada"]
[Black "Charochkina, Daria"]
[Result "1-0"]
[ECO "D45"]
[WhiteElo "2087"]
[BlackElo "2391"]
[Annotator "Robot 11"]
[PlyCount "155"]
[EventDate "2015.??.??"]
[EventCountry "GEO"]
[TimeControl "900+10"]

1. d4 {[%emt 0:00:01]} d5 {[%emt 0:00:01]} 2. Nf3 {[%emt 0:00:01]} Nf6 {[%emt
0:00:00]} 3. c4 {[%emt 0:00:01]} c6 {[%emt 0:00:01]} 4. Nc3 {[%emt 0:00:01]} e6
{[%emt 0:00:01]} 5. e3 {[%emt 0:00:02]} Nbd7 {[%emt 0:00:01]} 6. Qc2 {[%emt 0:
00:01]} Bd6 {[%emt 0:00:01]} 7. b3 {[%emt 0:00:03]} O-O {[%emt 0:00:03]} 8. Be2
{[%emt 0:00:01]} dxc4 {[%emt 0:00:15]} 9. bxc4 {[%emt 0:00:01]} e5 {[%emt 0:00:
02]} 10. O-O {[%emt 0:00:21]} Re8 {[%emt 0:00:02]} 11. Rd1 {[%emt 0:00:08]} Qe7
{[%emt 0:00:03]} 12. Rb1 {[%emt 0:00:20]} e4 {[%emt 0:00:24]} 13. Nd2 {[%emt 0:
00:02]} Nf8 {[%emt 0:00:02]} 14. Nf1 {[%emt 0:01:04]} h5 {[%emt 0:00:43]} 15.
f3 {[%emt 0:00:24]} Bf5 {[%emt 0:01:09]} 16. fxe4 {[%emt 0:00:01]} Nxe4 {[%emt
0:00:06]} 17. Nxe4 {[%emt 0:00:04]} Bxe4 {[%emt 0:00:05]} 18. Bd3 {[%emt 0:00:
01]} Bxd3 {[%emt 0:00:41]} 19. Qxd3 {[%emt 0:00:11]} c5 {[%emt 0:00:03]} 20.
dxc5 {[%emt 0:03:42]} Bxc5 {[%emt 0:00:11]} 21. Qd5 {[%emt 0:00:06]} Rad8 {
[%emt 0:00:48]} 22. Qxh5 {[%emt 0:00:02]} Rxd1 {[%emt 0:01:27]} 23. Qxd1 {
[%emt 0:00:02]} Rd8 {[%emt 0:00:02]} 24. Qf3 {[%emt 0:00:09]} b6 {[%emt 0:00:
03]} 25. Kh1 {[%emt 0:01:03]} Ng6 {[%emt 0:02:57]} 26. Bb2 {[%emt 0:00:14]} Qe6
{[%emt 0:00:17]} 27. Rc1 {[%emt 0:00:25]} a5 {[%emt 0:00:26]} 28. e4 {[%emt 0:
02:18]} Rd7 {[%emt 0:05:36]} 29. Ng3 {[%emt 0:00:15]} Bd4 {[%emt 0:00:16]} 30.
Bxd4 {[%emt 0:00:18]} Rxd4 {[%emt 0:00:01]} 31. c5 {[%emt 0:00:04]} bxc5 {
[%emt 0:01:11]} 32. Rxc5 {[%emt 0:00:03]} Ne5 {[%emt 0:00:36]} 33. Qe2 {[%emt
0:00:26]} Ra4 {[%emt 0:00:29]} 34. Rc2 {[%emt 0:01:07]} g6 {[%emt 0:00:03]} 35.
h3 {[%emt 0:00:03]} Ra3 {[%emt 0:00:11]} 36. Qf2 {[%emt 0:00:44]} Nd3 {[%emt 0:
01:15]} 37. Qe3 {[%emt 0:00:17]} Qf6 {[%emt 0:00:47]} 38. Rd2 {[%emt 0:01:46]}
Qc3 {[%emt 0:00:03]} 39. Kh2 {[%emt 0:00:09]} Qc4 {[%emt 0:00:15]} 40. e5 {
[%emt 0:00:20]} Qd5 {[%emt 0:00:21]} 41. Re2 {[%emt 0:00:22]} Qe6 {[%emt 0:00:
33]} 42. Qf3 {[%emt 0:00:27]} Qe7 {[%emt 0:00:06]} 43. Re3 {[%emt 0:00:19]}
Nxe5 {[%emt 0:00:03]} 44. Rxe5 Qd6 {[%emt 0:00:22]} 45. Re8+ {[%emt 0:00:16]}
Kg7 {[%emt 0:00:04]} 46. Qf2 {[%emt 0:00:14]} f5 {[%emt 0:00:01]} 47. Re3 {
[%emt 0:00:56]} Ra4 {[%emt 0:00:25]} 48. Qb2+ {[%emt 0:00:08]} Kh6 {[%emt 0:00:
09]} 49. Rf3 {[%emt 0:00:35]} Rd4 {[%emt 0:00:06]} 50. Qc1+ {[%emt 0:00:12]}
Kg7 {[%emt 0:00:01]} 51. Qc3 {[%emt 0:00:04]} Kh7 {[%emt 0:00:07]} 52. Qxa5 {
[%emt 0:00:08]} Rd1 {[%emt 0:00:01]} 53. Qa7+ {[%emt 0:00:04]} Kh6 {[%emt 0:00:
05]} 54. Qe3+ {[%emt 0:00:03]} Kh7 {[%emt 0:00:01]} 55. Qb3 {[%emt 0:00:22]}
Qd4 {[%emt 0:00:21]} 56. Qe3 {[%emt 0:00:06]} Qd6 {[%emt 0:00:02]} 57. a3 {
[%emt 0:00:13]} Rd4 {[%emt 0:00:13]} 58. Qb3 {[%emt 0:00:19]} Qe5 {[%emt 0:00:
07]} 59. Qc3 {[%emt 0:00:12]} Qd6 {[%emt 0:00:07]} 60. Qe1 {[%emt 0:00:22]} Rd1
{[%emt 0:00:17]} 61. Qb4 {[%emt 0:00:15]} Qe5 {[%emt 0:00:07]} 62. Qf4 {[%emt
0:00:15]} Qc5 {[%emt 0:00:31]} 63. Qe3 {[%emt 0:00:21]} Qc7 {[%emt 0:00:08]}
64. Rf4 {[%emt 0:00:26]} Kg7 {[%emt 0:00:18]} 65. Rh4 {[%emt 0:00:07]} Kf6 {
[%emt 0:00:04]} 66. Rb4 {[%emt 0:00:22]} Kg7 {[%emt 0:00:08]} 67. Rd4 {[%emt 0:
00:15]} Ra1 {[%emt 0:00:27]} 68. Rd7+ {[%emt 0:00:19]} Qxd7 {[%emt 0:00:03]}
69. Qc3+ {[%emt 0:00:01]} Kh6 {[%emt 0:00:21]} 70. Qxa1 {[%emt 0:00:22]} Qc7 {
[%emt 0:00:09]} 71. Qh8+ {[%emt 0:00:05]} Kg5 {[%emt 0:00:01]} 72. h4+ {[%emt
0:00:07]} Kg4 {[%emt 0:00:06]} 73. Qd4+ {[%emt 0:00:03]} f4 {[%emt 0:00:02]}
74. Ne4 {[%emt 0:00:17]} Qe7 {[%emt 0:00:26]} 75. Nf2+ {[%emt 0:00:10]} Kf5 {
[%emt 0:00:08]} 76. Qd5+ {[%emt 0:00:02]} Kf6 {[%emt 0:00:03]} 77. Ng4+ {[%emt
0:00:02]} Kg7 {[%emt 0:00:02]} 78. Qe5+ {[%emt 0:00:01]} 1-0

[Event "16th EWICC 2015"]
[Site "Kutaisi"]
[Date "2015.06.02"]
[Round "7"]
[White "Tedoshvili, Ana"]
[Black "Mikadze, Miranda"]
[Result "0-1"]
[ECO "D02"]
[WhiteElo "1805"]
[BlackElo "2233"]
[Annotator "Robot 11"]
[PlyCount "88"]
[EventDate "2015.??.??"]
[EventCountry "GEO"]
[TimeControl "900+10"]

1. d4 {[%emt 0:00:01]} d5 {[%emt 0:00:00]} 2. Nf3 {[%emt 0:00:02]} Nf6 {[%emt
0:00:02]} 3. g3 {[%emt 0:00:01]} Bf5 {[%emt 0:00:02]} 4. Bg2 {[%emt 0:00:02]}
e6 {[%emt 0:00:02]} 5. O-O {[%emt 0:00:02]} c6 {[%emt 0:00:08]} 6. e3 {[%emt 0:
00:04]} Nbd7 {[%emt 0:00:03]} 7. b3 {[%emt 0:00:12]} Be7 {[%emt 0:00:24]} 8.
Bb2 {[%emt 0:00:01]} Ne4 {[%emt 0:00:02]} 9. c4 {[%emt 0:00:07]} Qb6 {[%emt 0:
00:04]} 10. Qe2 {[%emt 0:00:26]} a5 {[%emt 0:00:04]} 11. Nc3 {[%emt 0:00:08]}
O-O {[%emt 0:00:10]} 12. Ne5 {[%emt 0:00:12]} Nxe5 {[%emt 0:00:28]} 13. dxe5 {
[%emt 0:00:03]} Nxc3 {[%emt 0:00:34]} 14. Bxc3 {[%emt 0:00:04]} a4 {[%emt 0:00:
02]} 15. cxd5 {[%emt 0:00:46]} cxd5 {[%emt 0:00:33]} 16. Bd4 {[%emt 0:00:05]}
Bc5 {[%emt 0:00:09]} 17. Bxc5 {[%emt 0:00:30]} Qxc5 {[%emt 0:00:01]} 18. Rac1 {
[%emt 0:00:09]} Qb4 {[%emt 0:00:44]} 19. bxa4 {[%emt 0:01:19]} Rxa4 {[%emt 0:
00:03]} 20. Rfd1 {[%emt 0:00:50]} Rfa8 {[%emt 0:00:35]} 21. Rd2 {[%emt 0:01:24]
} h6 {[%emt 0:00:58]} 22. Rcd1 {[%emt 0:00:14]} Qc3 {[%emt 0:00:21]} 23. Qb5 {
[%emt 0:00:43]} Rb4 {[%emt 0:00:52]} 24. Qe2 {[%emt 0:00:18]} Qxe5 {[%emt 0:00:
05]} 25. Rd4 {[%emt 0:00:38]} Rxd4 {[%emt 0:00:32]} 26. Rxd4 {[%emt 0:00:01]}
Qc7 {[%emt 0:00:26]} 27. Qb2 {[%emt 0:00:07]} Qa5 {[%emt 0:00:49]} 28. h3 {
[%emt 0:01:07]} Qe1+ {[%emt 0:02:44]} 29. Kh2 {[%emt 0:00:01]} Rc8 {[%emt 0:00:
11]} 30. Qd2 {[%emt 0:02:03]} Qxd2 {[%emt 0:02:45]} 31. Rxd2 {[%emt 0:00:01]}
Kf8 {[%emt 0:00:07]} 32. Rb2 {[%emt 0:00:07]} Rc2 {[%emt 0:00:15]} 33. Rxc2 {
[%emt 0:01:10]} Bxc2 {[%emt 0:00:01]} 34. Bf1 {[%emt 0:00:03]} Ke7 {[%emt 0:00:
04]} 35. g4 {[%emt 0:00:12]} Kd6 {[%emt 0:00:04]} 36. Kg3 {[%emt 0:00:20]} e5 {
[%emt 0:00:16]} 37. f4 {[%emt 0:00:16]} e4 {[%emt 0:00:08]} 38. g5 {[%emt 0:00:
02]} Kc5 {[%emt 0:01:20]} 39. a3 {[%emt 0:00:49]} Bd3 {[%emt 0:00:23]} 40. Bg2
{[%emt 0:00:09]} Kc4 {[%emt 0:00:11]} 41. gxh6 {[%emt 0:00:11]} gxh6 {[%emt 0:
00:02]} 42. f5 {[%emt 0:00:23]} f6 {[%emt 0:00:15]} 43. Kh4 {[%emt 0:00:09]}
Be2 {[%emt 0:00:06]} 44. Kg3 {[%emt 0:01:52]} b5 {[%emt 0:00:02]} 0-1

[Event "16th EWICC 2015"]
[Site "Kutaisi"]
[Date "2015.06.02"]
[Round "7"]
[White "Tereladze, Sopiko"]
[Black "Esadze, Tamar"]
[Result "1-0"]
[ECO "A05"]
[WhiteElo "2128"]
[BlackElo "1697"]
[Annotator "Robot 11"]
[PlyCount "55"]
[EventDate "2015.??.??"]
[EventCountry "GEO"]
[TimeControl "900+10"]

1. Nf3 {[%emt 0:00:03]} Nf6 {[%emt 0:00:01]} 2. b3 {[%emt 0:00:04]} e6 {[%emt
0:00:16]} 3. Bb2 {[%emt 0:00:01]} b6 {[%emt 0:00:03]} 4. g3 {[%emt 0:00:18]}
Bb7 5. Bg2 d5 {[%emt 0:00:07]} 6. O-O {[%emt 0:00:02]} Bd6 {[%emt 0:00:08]} 7.
d3 {[%emt 0:00:01]} O-O {[%emt 0:00:03]} 8. Nbd2 {[%emt 0:00:06]} c5 {[%emt 0:
00:10]} 9. Ne5 {[%emt 0:00:17]} Nc6 {[%emt 0:00:17]} 10. Ndf3 {[%emt 0:00:03]}
Qc7 {[%emt 0:00:13]} 11. Nxc6 {[%emt 0:00:07]} Bxc6 {[%emt 0:00:02]} 12. c4 {
[%emt 0:00:58]} d4 {[%emt 0:00:56]} 13. e4 {[%emt 0:00:05]} e5 {[%emt 0:00:26]}
14. Nh4 {[%emt 0:00:15]} Bd7 {[%emt 0:00:29]} 15. Nf5 {[%emt 0:00:15]} Bxf5 {
[%emt 0:00:19]} 16. exf5 {[%emt 0:00:01]} Rab8 {[%emt 0:00:24]} 17. Bc1 {[%emt
0:00:10]} a6 {[%emt 0:00:34]} 18. a4 {[%emt 0:00:02]} Rfe8 {[%emt 0:00:13]} 19.
Re1 {[%emt 0:00:21]} h6 {[%emt 0:00:35]} 20. Bd2 {[%emt 0:00:14]} a5 {[%emt 0:
00:48]} 21. Qf3 {[%emt 0:00:07]} Rbc8 {[%emt 0:00:35]} 22. h4 {[%emt 0:00:06]}
Re7 {[%emt 0:01:02]} 23. g4 {[%emt 0:00:05]} Rce8 {[%emt 0:00:36]} 24. g5 {
[%emt 0:00:09]} hxg5 {[%emt 0:02:40]} 25. hxg5 {[%emt 0:00:01]} Nd7 {[%emt 0:
00:27]} 26. Qh5 {[%emt 0:00:13]} f6 {[%emt 0:01:18]} 27. Bd5+ {[%emt 0:00:08]}
Re6 {[%emt 0:00:23]} 28. Qxe8+ {[%emt 0:00:09]} 1-0

[Event "16th EWICC 2015"]
[Site "Kutaisi"]
[Date "2015.06.02"]
[Round "7"]
[White "Vakhania, Alexandra"]
[Black "Ibrahimova, Sabina"]
[Result "1/2-1/2"]
[ECO "A04"]
[WhiteElo "2130"]
[BlackElo "2272"]
[Annotator "Robot 11"]
[PlyCount "153"]
[EventDate "2015.??.??"]
[EventCountry "GEO"]
[TimeControl "900+10"]

1. Nf3 {[%emt 0:00:03]} c5 {[%emt 0:00:01]} 2. c3 {[%emt 0:00:05]} Nc6 {[%emt
0:00:46]} 3. d4 {[%emt 0:00:02]} cxd4 {[%emt 0:00:12]} 4. cxd4 {[%emt 0:00:02]}
d5 {[%emt 0:01:13]} 5. Nc3 {[%emt 0:00:10]} Nf6 {[%emt 0:00:06]} 6. Bf4 {[%emt
0:00:41]} a6 {[%emt 0:00:11]} 7. e3 {[%emt 0:00:06]} g6 {[%emt 0:00:17]} 8. Bd3
{[%emt 0:00:13]} Bg7 {[%emt 0:00:01]} 9. h3 {[%emt 0:00:07]} O-O {[%emt 0:00:
06]} 10. a3 {[%emt 0:00:09]} Qb6 {[%emt 0:01:59]} 11. Na4 {[%emt 0:00:33]} Qa7
{[%emt 0:00:08]} 12. b4 {[%emt 0:00:12]} Nd7 {[%emt 0:01:03]} 13. Rc1 {[%emt 0:
00:05]} e5 {[%emt 0:01:21]} 14. dxe5 {[%emt 0:00:02]} Ndxe5 {[%emt 0:00:11]}
15. Nxe5 Nxe5 16. O-O {[%emt 0:01:13]} Bd7 {[%emt 0:02:24]} 17. Bxe5 {[%emt 0:
00:47]} Bxe5 {[%emt 0:00:10]} 18. Nc5 {[%emt 0:00:01]} Rad8 {[%emt 0:00:58]}
19. a4 {[%emt 0:00:49]} Bc8 {[%emt 0:01:27]} 20. a5 {[%emt 0:00:42]} d4 {[%emt
0:01:08]} 21. e4 {[%emt 0:00:04]} Qb8 {[%emt 0:00:03]} 22. Bc4 {[%emt 0:01:24]}
Kg7 {[%emt 0:01:29]} 23. Bd5 {[%emt 0:00:27]} f5 {[%emt 0:00:31]} 24. Nd3 {
[%emt 0:00:04]} fxe4 {[%emt 0:00:27]} 25. Bxe4 {[%emt 0:00:03]} Bf6 {[%emt 0:
00:46]} 26. Qc2 {[%emt 0:00:30]} Rf7 {[%emt 0:00:29]} 27. Qc5 {[%emt 0:00:37]}
Re7 {[%emt 0:00:44]} 28. Rfe1 {[%emt 0:05:09]} Rde8 {[%emt 0:00:23]} 29. Bf3 {
[%emt 0:03:19]} Bf5 {[%emt 0:00:14]} 30. Rxe7+ Rxe7 31. Qc4 {[%emt 0:01:11]}
Qd6 {[%emt 0:00:38]} 32. Rd1 {[%emt 0:00:05]} Rc7 {[%emt 0:00:13]} 33. Nc5 {
[%emt 0:00:03]} d3 {[%emt 0:00:28]} 34. Bxb7 {[%emt 0:00:12]} d2 {[%emt 0:00:
19]} 35. Bd5 {[%emt 0:00:17]} Re7 {[%emt 0:00:06]} 36. Be4 {[%emt 0:00:39]} Qf4
{[%emt 0:00:13]} 37. g3 Rxe4 38. Nxe4 {[%emt 0:00:36]} Qxe4 {[%emt 0:00:08]}
39. Qxe4 {[%emt 0:00:07]} Bxe4 40. Rxd2 Bc6 {[%emt 0:00:13]} 41. Rd6 Bb5 42.
Re6 {[%emt 0:00:34]} Bc3 {[%emt 0:00:00]} 43. Re4 {[%emt 0:00:01]} Kf6 {[%emt
0:00:18]} 44. f3 {[%emt 0:00:04]} Bd3 {[%emt 0:00:20]} 45. Rf4+ {[%emt 0:00:09]
} Ke5 {[%emt 0:00:20]} 46. Rf7 {[%emt 0:00:01]} Bxb4 {[%emt 0:00:16]} 47. Rxh7
{[%emt 0:00:02]} Bxa5 {[%emt 0:00:01]} 48. h4 {[%emt 0:00:02]} Bb6+ {[%emt 0:
00:13]} 49. Kg2 {[%emt 0:00:07]} a5 {[%emt 0:00:14]} 50. f4+ {[%emt 0:00:22]}
Kf5 {[%emt 0:00:14]} 51. h5 {[%emt 0:00:04]} gxh5 {[%emt 0:00:09]} 52. Rxh5+ {
[%emt 0:00:01]} Kg6 {[%emt 0:00:05]} 53. Re5 {[%emt 0:00:05]} Bc7 {[%emt 0:00:
08]} 54. Rc5 {[%emt 0:00:05]} Bd8 {[%emt 0:00:14]} 55. Kf3 {[%emt 0:00:18]} Bf1
{[%emt 0:00:13]} 56. Rd5 {[%emt 0:00:13]} Bc7 {[%emt 0:00:06]} 57. Rc5 {[%emt
0:00:12]} Bd8 {[%emt 0:00:06]} 58. Rc8 {[%emt 0:00:22]} Be7 {[%emt 0:00:07]}
59. Ra8 {[%emt 0:00:32]} Bb4 {[%emt 0:00:02]} 60. g4 {[%emt 0:00:01]} Bb5 {
[%emt 0:00:10]} 61. Rb8 {[%emt 0:00:11]} Bc6+ {[%emt 0:00:05]} 62. Ke2 {[%emt
0:00:30]} Bd5 {[%emt 0:00:17]} 63. Rb6+ {[%emt 0:00:10]} Kf7 {[%emt 0:00:06]}
64. f5 {[%emt 0:00:14]} Bc5 {[%emt 0:00:23]} 65. Rb1 {[%emt 0:00:29]} Kf6 {
[%emt 0:00:13]} 66. Kd3 {[%emt 0:00:02]} Bb4 {[%emt 0:00:11]} 67. Kd4 {[%emt 0:
00:12]} Bf3 {[%emt 0:00:07]} 68. Rg1 {[%emt 0:00:13]} Kg5 {[%emt 0:00:18]} 69.
Ke5 {[%emt 0:00:06]} a4 {[%emt 0:00:09]} 70. f6 {[%emt 0:00:11]} Bc3+ {[%emt 0:
00:04]} 71. Ke6 {[%emt 0:00:05]} Bxg4+ {[%emt 0:00:07]} 72. Kd5 {[%emt 0:00:19]
} Bxf6 {[%emt 0:00:09]} 73. Kc4 a3 74. Kb3 Bb2 75. Rg2 Bc1 76. Rg1 Be3 77.
Rxg4+ 1/2-1/2